bitfinex-derivatives/quotes_BNBF0:USTF0_20250111
["timestamp","ask_amount","ask_price","bid_price","bid_amount"]
[1736613960041,0.28739348,695.91,694.42,3.16280213]
[1736613960237,0.28739348,695.91,694.43,0.28800599]
[1736613962646,0.28739348,695.91,694.45,1.28737475]
[1736613962840,0.28739348,695.91,694.46,0.28799354]
[1736613965447,0.28739348,695.91,694.51,1.28737475]
[1736613965747,0.28739348,695.91,694.52,0.28796866]
[1736613967350,0.28739348,695.91,694.52,1.57534341]
[1736613968753,0.28739348,695.91,694.52,0.28796866]
[1736613970154,0.28739348,695.91,694.59,1.28737475]
[1736613971252,0.28739348,695.91,694.53,3.16280213]
[1736613972551,0.28739348,695.91,694.52,3.45077079]
[1736613973252,0.28739348,695.91,694.53,1.28737475]
[1736613974353,0.28739348,695.91,694.52,0.28796866]
[1736613974354,0.28739348,695.91,694.55,1.28737475]
[1736613975255,0.28739348,695.91,694.57,1.28737475]
[1736613976457,0.28739348,695.91,694.58,1.28737475]
[1736613978057,0.28739348,695.91,694.6,1.28737475]
[1736613978759,0.28739348,695.91,694.63,1.28737475]
[1736613980063,0.28739348,695.91,694.58,2.00240935]
[1736613980260,0.28739348,695.91,694.58,1.16655539]
[1736613980454,0.28739348,695.91,694.58,3.16896474]
[1736613981159,0.28739348,695.91,694.53,3.16896474]
[1736613982767,0.28739348,695.91,694.52,0.28796866]
[1736613983559,0.28739348,695.91,694.61,1.28737475]
[1736613984459,0.28739348,695.91,694.69,1.28737475]
[1736613985255,0.28739348,695.91,694.76,1.28737475]
[1736613986259,0.28739348,695.91,694.75,1.28737475]
[1736613987463,0.28739348,695.91,694.84,1.28737475]
[1736613988659,0.28739348,695.91,694.82,1.28737475]
[1736613989663,0.28739348,695.91,694.87,1.28737475]
[1736613990459,0.28739348,695.91,694.81,1.28737475]
[1736613991664,0.28739348,695.91,694.77,3.16896474]
[1736613991665,0.28739348,695.91,694.8,1.28737475]
[1736613992865,0.28739348,695.91,694.79,3.16896474]
[1736613993168,0.28739348,695.91,694.8,3.04311917]
[1736613993368,0.28739348,695.91,694.8,6.21208391]
[1736613993567,0.28739348,695.91,694.81,3.16896474]
[1736613994769,0.28739348,695.91,694.75,3.16896474]
[1736613995870,0.28739348,695.91,694.71,3.16896474]
[1736613997974,0.28739348,695.91,694.72,0.28788576]
[1736614000474,0.28739348,695.91,694.75,1.28737475]
[1736614001675,0.28739348,695.91,694.74,1.28737475]
[1736614002477,0.28739348,695.91,694.72,0.28788576]
[1736614003475,0.28739348,695.91,694.79,1.28737475]
[1736614004580,0.28739348,695.91,694.76,1.28737475]
[1736614005275,0.28739348,695.91,694.77,1.28737475]
[1736614006282,0.28739348,695.91,694.76,1.28737475]
[1736614006980,0.28739348,695.91,694.76,4.45633949]
[1736614007380,0.28739348,695.91,694.76,3.16896474]
[1736614007983,0.28739348,695.91,694.75,3.16896474]
[1736614009183,0.28739348,695.91,694.75,6.21208391]
[1736614009383,0.28739348,695.91,694.76,3.16896474]
[1736614010579,0.28739348,695.91,694.75,3.16896474]
[1736614011384,0.28739348,695.91,694.72,0.28788576]
[1736614060418,0.28739348,695.91,694.72,1.57526051]
[1736614061316,0.28739348,695.91,694.74,1.28737475]
[1736614062117,0.28739348,695.91,694.72,0.28788576]
[1736614063213,0.28739348,695.91,694.78,1.28737475]
[1736614064112,0.28739348,695.91,694.79,1.28737475]
[1736614064819,0.28739348,695.91,694.8,1.28737475]
[1736614065816,0.28739348,695.91,694.79,1.28737475]
[1736614066419,0.28739348,695.91,694.75,1.28737475]
[1736614067014,0.28739348,695.91,694.75,4.33049392]
[1736614067216,0.28739348,695.91,694.76,3.16896474]
[1736614070121,0.28739348,695.91,694.76,6.21208391]
[1736614070324,0.28739348,695.91,694.77,3.16896474]
[1736614070922,0.28739348,695.91,694.76,3.04311917]
[1736614072028,0.28739348,695.91,694.72,0.28788576]
[1736614081133,0.28739348,695.91,694.62,1.28737475]
[1736614082031,0.28739348,695.91,694.51,2.19032511]
[1736614082231,0.28739348,695.91,694.13,1.28737475]
[1736614082731,0.28739348,695.91,694.14,0.28812631]
[1736614100443,0.26426164,695.9,694.14,0.28812631]
[1736614100744,0.28739348,695.91,694.14,0.28812631]
[1736614100946,0.26426656,695.9,694.15,2.01546631]
[1736614101140,0.26426656,695.9,694.16,2.30358432]
[1736614101345,0.26426656,695.9,693.89,1.28737475]
[1736614101346,0.28740174,695.89,694.17,6.64781692]
[1736614101541,0.26426656,695.88,694.18,3.48660997]
[1736614101741,0.28741,695.87,694.19,2.30357187]
[1736614101940,0.28741,695.87,694.2,0.28810141]
[1736614102342,0.28741,695.87,694.28,1.28737475]
[1736614102545,0.26429034,695.86,694.28,1.28737475]
[1736614103342,0.26429034,695.86,694.21,3.19850026]
[1736614103950,0.28741826,695.85,694.22,0.28809311]
[1736614104750,0.26429482,695.84,694.22,0.28809311]
[1736614104945,0.28741826,695.85,694.22,0.28809311]
[1736614106750,0.26429641,695.84,694.22,0.28809311]
[1736614106952,0.28741826,695.85,694.22,0.28809311]
[1736614112962,0.26429138,695.84,694.22,0.28809311]
[1736614113165,0.28743065,695.82,694.22,0.28809311]
[1736614113967,0.28743065,695.82,694.22,1.57546786]
[1736614115171,0.28743065,695.82,694.39,1.28737475]
[1736614116770,0.28743065,695.82,694.38,1.28737475]
[1736614116969,0.26432776,695.81,694.38,1.28737475]
[1736614117162,0.28744305,695.79,694.3,3.19348142]
[1736614117366,0.28744305,695.79,694.3,2.01546631]
[1736614117767,0.28744305,695.79,694.29,3.056862]
[1736614118168,0.28744305,695.79,694.24,1.29149626]
[1736614118868,0.28744305,695.79,694.22,0.28809311]
[1736614126967,1.50277993,695.78,694.22,0.28809311]
[1736614127273,0.28745544,695.76,694.22,0.28809311]
[1736614129269,0.26435848,695.75,694.22,0.28809311]
[1736614129472,0.28746783,695.73,694.22,0.28809311]
[1736614129672,0.26436021,695.72,694.22,0.28809311]
[1736614129870,0.28748023,695.7,694.22,0.28809311]
[1736614130073,0.26436021,695.69,694.22,0.28809311]
[1736614130375,0.2874885,695.68,694.22,0.28809311]
[1736614132269,0.26435952,695.67,694.22,0.28809311]
[1736614132474,0.28749676,695.66,694.22,0.28809311]
[1736614146481,0.28749676,695.66,694.25,1.29149626]
[1736614147584,0.28749676,695.66,694.22,1.57958937]
[1736614148584,0.28749676,695.66,694.24,1.29149626]
[1736614149485,0.28749676,695.66,694.23,1.29149626]
[1736614149883,0.26436555,695.65,694.23,1.29149626]
[1736614150079,0.28750503,695.64,694.23,1.29149626]
[1736614150586,0.28750503,695.64,694.22,0.28809311]
[1736614152787,1.07495048,695.58,694.22,0.28809311]
[1736614152983,0.28753396,695.57,694.22,0.28809311]
[1736614155992,0.28753396,695.57,694.22,1.58000306]
[1736614156993,0.28753396,695.57,694.22,0.28809311]
[1736614159993,0.28753396,695.57,694.29,1.29094967]
[1736614161091,0.27169304,695.57,694.24,1.29094967]
[1736614161889,0.27169304,695.57,694.28,1.29094967]
[1736614162092,0.27169304,695.57,694.29,0.28806406]
[1736614167596,0.27169304,695.57,694.39,1.29094967]
[1736614169897,0.27169304,695.57,694.41,1.29094967]
[1736614170601,0.27169304,695.57,694.42,1.29094967]
[1736614171603,0.27169304,695.57,694.4,0.28801843]
[1736614175605,1.0748278,696.22,694.4,0.28801843]
[1736614175906,0.28727377,696.2,694.4,0.28801843]
[1736614176205,0.26420232,696.19,694.4,1.5789681]
[1736614176804,0.26420232,696.19,694.4,0.28801843]
[1736614177106,0.26417945,696.18,694.4,0.28801843]
[1736614177308,0.26417945,696.17,694.4,0.28801843]
[1736614177510,0.26417945,696.16,694.4,0.28801843]
[1736614177706,0.28727377,696.2,694.4,0.28801843]
[1736614177906,0.28727377,696.2,694.44,1.29094967]
[1736614178107,0.26415242,696.19,694.44,1.29094967]
[1736614178404,0.28727377,696.2,694.44,1.29094967]
[1736614179009,0.28727377,696.2,694.4,0.28801843]
[1736614185414,0.26412753,696.19,694.4,0.28801843]
[1736614185612,0.28728202,696.18,694.4,0.28801843]
[1736614185913,0.26412753,696.17,694.4,0.28801843]
[1736614186105,0.28729027,696.16,694.4,0.28801843]
[1736614196716,0.26415705,696.15,694.4,0.28801843]
[1736614197017,0.28729853,696.14,694.4,0.28801843]
[1736614197218,0.26415705,696.13,694.4,0.28801843]
[1736614197419,0.28730678,696.12,694.4,0.28801843]
[1736614198515,0.26416249,696.11,694.4,0.28801843]
[1736614198718,0.28731504,696.1,694.4,0.28801843]
[1736614198919,0.26416249,696.09,694.4,0.28801843]
[1736614199121,0.28732329,696.08,694.4,0.28801843]
[1736614204531,0.28732329,696.08,694.4,1.5789681]
[1736614205828,0.28732329,696.08,694.43,1.29094967]
[1736614206519,0.28732329,696.08,694.6,1.29094967]
[1736614207423,0.28732329,696.08,694.62,1.29094967]
[1736614208628,0.28732329,696.08,694.45,2.00441249]
[1736614208822,0.28732329,696.08,694.46,0.28799354]
[1736614212226,0.28732329,696.08,694.57,1.29094967]
[1736614212827,0.28732329,696.08,694.55,1.29094967]
[1736614213625,1.36215109,696.08,694.49,1.29094967]
[1736614214628,0.28732329,696.08,694.5,1.29094967]
[1736614217753,0.28732329,696.08,694.48,1.29094967]
[1736614217931,0.28732329,696.08,694.49,0.2879811]
[1736614220634,0.28732329,696.08,694.52,1.29094967]
[1736614220827,0.28732329,696.08,694.53,0.28796452]
[1736614225832,0.26422455,696.07,694.53,0.28796452]
[1736614226039,0.28733567,696.05,694.53,0.28796452]
[1736614226337,0.26422455,696.04,694.53,0.28796452]
[1736614226637,0.28734806,696.02,694.53,0.28796452]
[1736614226830,0.26422455,696.01,694.53,0.28796452]
[1736614227036,0.28735632,696.0,694.58,1.29094967]
[1736614227837,0.28735632,696.0,694.57,1.29094967]
[1736614228730,1.0748278,695.97,694.53,0.28796452]
[1736614228938,0.28737283,695.96,694.53,0.28796452]
[1736614245146,0.28737283,695.96,694.58,1.29094967]
[1736614245541,0.28737283,695.96,694.59,0.28793964]
[1736614246948,0.28737283,695.96,694.59,1.57888931]
[1736614248249,0.28737283,695.96,694.59,0.28793964]
[1736614248945,0.28737283,695.96,694.66,1.29094967]
[1736614249449,0.28737283,695.96,694.66,1.5788603]
[1736614249847,0.28737283,695.96,694.67,0.28790648]
[1736614250144,0.28737283,695.96,694.7,1.29094967]
[1736614250942,0.28737283,695.96,694.67,0.28790648]
[1736614257655,0.28737283,695.96,694.8,1.29094967]
[1736614259460,0.28737283,695.96,694.79,1.29094967]
[1736614261456,0.28737283,695.96,694.8,1.29094967]
[1736614262457,0.28737283,695.96,694.75,3.20904562]
[1736614262858,0.28737283,695.96,694.69,3.20904562]
[1736614263566,0.28737283,695.96,694.69,4.49999529]
[1736614263965,0.28737283,695.96,694.69,4.78789348]
[1736614264164,0.28737283,695.96,694.7,1.19454991]
[1736614264563,0.28737283,695.96,694.7,4.52282058]
[1736614264758,0.28737283,695.96,694.71,2.01449571]
[1736614264957,0.28737283,695.96,694.71,3.20904562]
[1736614266165,0.28737283,695.96,694.7,0.28789405]
[1736614273872,0.28737283,695.96,694.83,1.29094967]
[1736614274668,0.28737283,695.96,694.74,6.24942224]
[1736614274871,0.28737283,695.96,694.75,3.20904562]
[1736614275773,0.28737283,695.96,694.7,0.28789405]
[1736614287781,0.28737283,695.96,694.7,1.5779092]
[1736614288581,0.28737283,695.96,694.7,0.28789405]
[1736614305594,0.28737283,695.96,694.02,1.29001515]
[1736614305793,0.26427698,695.95,694.02,1.29001515]
[1736614305990,0.26427698,695.95,694.04,0.28816782]
[1736614307700,0.26427246,695.94,694.04,0.28816782]
[1736614307889,0.26427246,695.93,694.04,0.28816782]
[1736614308097,0.26427246,695.92,694.13,1.29001515]
[1736614308295,0.26427246,695.93,694.13,1.29001515]
[1736614308594,0.26427246,695.92,694.13,1.29001515]
[1736614308795,0.26427246,695.91,694.13,1.29001515]
[1736614308990,0.26427246,695.9,694.13,1.29001515]
[1736614309198,0.28737283,695.96,694.13,1.29001515]
[1736614309199,0.26427246,695.89,694.22,1.29001515]
[1736614309399,0.26427246,695.88,694.22,1.29001515]
[1736614309601,0.26427246,695.87,694.22,1.29001515]
[1736614309901,0.28737283,695.96,694.06,3.04037662]
[1736614309902,0.26427246,695.86,694.26,1.29001515]
[1736614310200,1.36329992,695.96,694.27,0.28807236]
[1736614310394,0.26426758,695.95,694.27,0.28807236]
[1736614310793,1.07592709,695.93,694.27,0.28807236]
[1736614310996,0.26426758,695.92,694.27,0.28807236]
[1736614311400,0.28739348,695.91,694.27,0.28807236]
[1736614311594,0.26426758,695.9,694.42,1.29001515]
[1736614311992,0.28740174,695.89,694.42,1.29001515]
[1736614312198,0.26426758,695.88,694.42,1.29001515]
[1736614312399,0.28741,695.87,694.42,1.29001515]
[1736614313499,0.28741,695.87,694.46,1.29001515]
[1736614314296,0.28741,695.87,694.39,1.29001515]
[1736614314601,0.28741,695.87,694.39,4.49293201]
[1736614315001,0.28741,695.87,694.39,3.20291686]
[1736614315901,0.28741,695.87,694.38,3.20291686]
[1736614316102,0.28741,695.87,694.38,2.01449571]
[1736614316295,0.28741,695.87,694.37,3.04037662]
[1736614316499,0.28741,695.87,694.32,1.29001515]
[1736614317003,0.28741,695.87,694.27,0.28807236]
[1736614317997,0.26433944,695.86,694.27,0.28807236]
[1736614318201,0.26433614,695.85,694.27,0.28807236]
[1736614318396,0.28741,695.87,694.27,0.28807236]
[1736614319598,0.26430726,695.86,694.27,0.28807236]
[1736614319796,0.28741,695.87,694.27,0.28807236]
[1736614319997,0.26430562,695.86,694.27,0.28807236]
[1736614320802,0.26430314,695.85,694.27,0.28807236]
[1736614321007,0.26430314,695.84,694.27,0.28807236]
[1736614321205,0.26430314,695.83,694.27,0.28807236]
[1736614321503,0.26430314,695.82,694.27,0.28807236]
[1736614321702,0.26430314,695.81,694.27,0.28807236]
[1736614321904,0.28741,695.87,694.27,0.28807236]
[1736614322104,0.2642997,695.86,694.27,0.28807236]
[1736614322702,0.28741,695.87,694.27,0.28807236]
[1736614322904,0.26429872,695.86,694.27,0.28807236]
[1736614324904,0.28741,695.87,694.27,0.28807236]
[1736614331316,0.26425384,695.86,694.27,0.28807236]
[1736614331917,0.28741826,695.85,694.27,0.28807236]
[1736614332120,0.26425384,695.84,694.3,1.29001515]
[1736614332312,0.26425384,695.84,694.31,0.28805576]
[1736614332517,0.28742652,695.83,694.31,0.28805576]
[1736614332719,0.26425384,695.82,694.31,0.28805576]
[1736614333517,0.55174394,695.81,694.31,0.28805576]
[1736614333813,0.55174807,695.8,694.31,0.28805576]
[1736614334013,0.55175221,695.79,694.31,0.28805576]
[1736614334217,0.55175634,695.78,694.31,0.28805576]
[1736614334413,0.55176047,695.77,694.31,0.28805576]
[1736614334619,0.5517646,695.76,694.31,0.28805576]
[1736614334814,0.55176873,695.75,694.31,0.28805576]
[1736614335021,0.55177286,695.74,694.31,0.28805576]
[1736614335220,0.55177699,695.73,694.31,0.28805576]
[1736614335419,0.5517819,695.72,694.31,0.28805576]
[1736614335619,0.2874761,695.71,694.31,0.28805576]
[1736614356435,0.2874761,695.71,694.33,1.29001515]
[1736614356735,0.2874761,695.71,694.34,0.28804332]
[1736614357738,0.2874761,695.71,694.45,1.29001515]
[1736614359034,0.2874761,695.71,694.36,3.19466792]
[1736614359035,0.2874761,695.71,694.39,1.29001515]
[1736614359337,0.2874761,695.71,694.4,0.28801843]
[1736614360137,0.2874761,695.71,694.4,1.57803358]
[1736614362032,0.2874761,695.71,694.4,4.7727015]
[1736614362229,0.2874761,695.71,694.41,1.18675909]
[1736614362736,0.2874761,695.71,694.42,0.28801013]
[1736614379647,1.07592709,695.69,694.42,0.28801013]
[1736614381148,1.07592709,695.7,694.42,0.28801013]
[1736614382349,0.2874761,695.71,694.42,0.28801013]
[1736614402263,0.2874761,695.71,694.42,1.57802528]
[1736614403061,0.2874761,695.71,694.43,1.29001515]
[1736614403261,0.2874761,695.71,694.44,0.28800184]
[1736614404858,0.2874761,695.71,694.46,1.29001515]
[1736614405058,0.2874761,695.71,694.47,0.2879894]
[1736614405859,0.2874761,695.71,694.47,1.57800455]
[1736614406767,0.2874761,695.71,694.47,0.2879894]
[1736614411362,0.2874761,695.71,694.47,1.4752029]
[1736614411769,0.2874761,695.71,694.48,1.29001515]
[1736614411968,0.2874761,695.71,694.49,0.2879811]
[1736614412769,0.2874761,695.71,694.49,1.57799625]
[1736614413467,0.2874761,695.71,694.49,2.76520975]
[1736614414572,0.2874761,695.71,694.49,5.81081522]
[1736614414875,0.2874761,695.71,694.5,3.19512233]
[1736614415270,0.2874761,695.71,694.51,0.28797281]
[1736614415975,0.2874761,695.71,694.51,1.47518631]
[1736614416375,0.2874761,695.71,694.51,0.28797281]
[1736614417376,0.2874761,695.71,694.53,1.29001515]
[1736614417575,0.2874761,695.71,694.53,1.57797967]
[1736614418373,0.2874761,695.71,694.54,1.29001515]
[1736614420180,0.2874761,695.71,694.54,4.48513748]
[1736614420679,0.2874761,695.71,694.55,1.29001515]
[1736614421179,0.2874761,695.71,694.55,4.33562062]
[1736614421374,0.2874761,695.71,694.56,3.19512233]
[1736614422281,0.2874761,695.71,694.57,1.29001515]
[1736614422477,0.2874761,695.71,694.57,4.48513748]
[1736614422875,0.2874761,695.71,694.58,1.29001515]
[1736614423984,0.2874761,695.71,694.57,3.19512233]
[1736614423985,0.2874761,695.71,694.72,1.29001515]
[1736614426181,0.2874761,695.71,694.71,1.29001515]
[1736614427082,0.2874761,695.71,694.67,1.29001515]
[1736614428286,0.2874761,695.71,694.67,4.48513748]
[1736614429182,0.2874761,695.71,694.68,3.04560547]
[1736614429389,0.2874761,695.71,694.68,6.2407278]
[1736614429685,0.2874761,695.71,694.69,3.19512233]
[1736614431081,0.2874761,695.71,694.68,4.48513748]
[1736614431988,0.2874761,695.71,694.69,3.04560547]
[1736614432193,0.2874761,695.71,694.69,6.2407278]
[1736614432383,0.2874761,695.71,694.7,3.19512233]
[1736614433890,0.2874761,695.71,694.56,3.19512233]
[1736614434690,0.2874761,695.71,694.56,6.2407278]
[1736614434887,0.2874761,695.71,694.57,3.19512233]
[1736614437887,0.2874761,695.71,694.53,0.28796452]
[1736614445805,0.2874761,695.71,694.53,1.57797967]
[1736614446796,0.2874761,695.71,694.59,1.29001515]
[1736614448801,0.2874761,695.71,694.61,1.29001515]
[1736614450600,0.2874761,695.71,694.62,1.29001515]
[1736614451497,0.2874761,695.71,694.61,1.29001515]
[1736614453205,0.2874761,695.71,694.59,3.19512233]
[1736614454099,0.2874761,695.71,694.55,3.19512233]
[1736614456201,0.2874761,695.71,694.53,0.28796452]
[1736614465111,0.2874761,695.71,694.65,1.29001515]
[1736614466313,0.2874761,695.71,694.63,1.29001515]
[1736614467108,0.2874761,695.71,694.6,3.19512233]
[1736614467109,0.2874761,695.71,694.65,1.29001515]
[1736614469213,0.2874761,695.71,694.64,3.19512233]
[1736614469614,0.2874761,695.71,694.59,3.19512233]
[1736614470015,0.2874761,695.71,694.59,4.48513748]
[1736614470409,0.2874761,695.71,694.6,3.04560547]
[1736614470613,0.2874761,695.71,694.6,6.2407278]
[1736614470909,0.2874761,695.71,694.61,3.19512233]
[1736614474017,0.2874761,695.71,694.59,3.19512233]
[1736614475410,0.2874761,695.71,694.66,1.29001515]
[1736614476415,0.2874761,695.71,694.65,1.29001515]
[1736614477616,0.2874761,695.71,694.66,1.29001515]
[1736614478514,0.2874761,695.71,694.63,1.29001515]
[1736614478818,0.2874761,695.71,694.63,4.33562062]
[1736614479018,0.2874761,695.71,694.64,3.19512233]
[1736614480021,0.2874761,695.71,694.64,6.2407278]
[1736614480222,0.2874761,695.71,694.65,3.19512233]
[1736614482817,0.2874761,695.71,694.65,6.2407278]
[1736614483024,0.2874761,695.71,694.66,3.19512233]
[1736614485022,0.2874761,695.71,694.59,3.19512233]
[1736614488322,0.2874761,695.71,694.53,0.28796452]
[1736614493236,1.07592709,696.05,694.53,0.28796452]
[1736614494031,1.07592709,696.08,694.53,0.28796452]
[1736614495036,1.07592709,696.14,694.53,0.28796452]
[1736614495238,0.28730265,696.13,694.53,0.28796452]
[1736614497139,1.07592709,696.06,694.58,1.29001515]
[1736614497741,1.07592709,696.12,694.53,0.28796452]
[1736614498341,0.28731091,696.11,694.53,0.28796452]
[1736614507951,1.363238,696.11,694.59,1.29001515]
[1736614508351,1.363238,696.11,694.6,0.2879355]
[1736614508850,0.28731091,696.11,694.6,0.2879355]
[1736614513751,0.28731091,696.11,694.61,1.29001515]
[1736614513956,0.28731091,696.11,694.62,0.28792721]
[1736614516357,0.28731091,696.11,694.62,3.48975303]
[1736614516756,0.28731091,696.11,694.62,4.77976818]
[1736614516953,0.28731091,696.11,694.63,1.189293]
[1736614517559,0.28731091,696.11,694.63,2.47930815]
[1736614517857,0.28731091,696.11,694.63,5.52491362]
[1736614518059,0.28731091,696.11,694.64,3.20182582]
[1736614518860,0.28731091,696.11,694.64,6.24743129]
[1736614519061,0.28731091,696.11,694.65,3.20182582]
[1736614522060,0.28731091,696.11,694.62,0.28792721]
[1736614529566,0.28731091,696.11,694.73,1.29001515]
[1736614529758,0.28731091,696.11,694.74,0.28787747]
[1736614531163,0.28731091,696.11,694.77,1.29001515]
[1736614531360,0.28731091,696.11,694.78,0.2878609]
[1736614535866,0.28731091,696.11,694.86,1.29001515]
[1736614536669,0.28731091,696.11,694.84,1.29001515]
[1736614537567,0.28731091,696.11,694.87,1.29001515]
[1736614538372,0.28731091,696.11,694.86,1.29001515]
[1736614539373,0.28731091,696.11,694.8,3.04560547]
[1736614539374,0.28731091,696.11,694.81,3.20182582]
[1736614540370,0.28731091,696.11,694.8,3.04560547]
[1736614540574,0.28731091,696.11,694.8,4.33562062]
[1736614540875,0.28731091,696.11,694.8,1.29001515]
[1736614541273,0.28731091,696.11,694.81,0.28784847]
[1736614551084,0.28731091,696.11,694.9,1.29001515]
[1736614553386,0.28731091,696.11,694.91,1.29001515]
[1736614556086,0.28731091,696.11,694.88,3.18060506]
[1736614556087,0.28731091,696.11,694.92,1.29001515]
[1736614557685,0.28731091,696.11,694.85,3.18936518]
[1736614559182,0.28731091,696.11,694.81,0.28784847]
[1736614564390,0.28731091,696.11,694.82,1.29001515]
[1736614564592,0.28731091,696.11,694.83,0.28784019]
[1736614565492,0.28731091,696.11,694.9,1.29001515]
[1736614568392,0.28731091,696.11,694.84,3.18936518]
[1736614568588,0.28731091,696.11,694.85,0.2878319]
[1736614570190,0.28731091,696.11,694.85,3.47719708]
[1736614572594,0.28731091,696.11,694.87,1.29001515]
[1736614572994,0.28731091,696.11,694.88,0.28781947]
[1736614573495,0.28731091,696.11,694.88,1.47236328]
[1736614573690,0.28731091,696.11,694.88,2.76237843]
[1736614574697,0.28731091,696.11,694.88,4.5050281]
[1736614574896,0.28731091,696.11,694.89,2.00482137]
[1736614575091,0.28731091,696.11,694.9,0.28781119]
[1736614577895,1.07592709,696.43,694.9,0.28781119]
[1736614578495,1.07592709,696.5,694.9,0.28781119]
[1736614578691,0.28715415,696.49,694.9,0.28781119]
[1736614587401,0.26404283,696.48,694.9,0.28781119]
[1736614587699,0.2871624,696.47,694.9,0.28781119]
[1736614587899,0.26404545,696.46,694.9,0.28781119]
[1736614588099,0.28717065,696.45,694.9,0.28781119]
[1736614588600,0.28717065,696.45,694.9,1.57782634]
[1736614588899,0.26404761,696.44,694.9,1.57782634]
[1736614589100,0.28717889,696.43,694.9,4.76719152]
[1736614589300,0.28717889,696.43,694.91,1.18454381]
[1736614589501,0.28717889,696.43,694.93,1.29001515]
[1736614589899,0.28717889,696.43,694.94,0.28779462]
[1736614590597,0.26404937,696.42,694.94,0.28779462]
[1736614590901,0.28718714,696.41,694.94,1.57780977]
[1736614591802,0.28718714,696.41,694.98,1.29001515]
[1736614592504,0.28718714,696.41,695.0,1.29001515]
[1736614593705,0.28718714,696.41,695.01,1.29001515]
[1736614595803,0.28718714,696.41,694.98,3.18936518]
[1736614596699,1.36311423,696.41,694.98,3.18936518]
[1736614597401,1.36311423,696.41,694.95,3.18936518]
[1736614597606,1.07592709,696.4,694.96,1.29001515]
[1736614597800,0.28719539,696.39,694.96,1.29001515]
[1736614598401,0.28719539,696.39,694.95,3.18936518]
[1736614598402,1.36312248,696.39,694.97,1.29001515]
[1736614599303,1.07592709,696.38,694.97,4.47938033]
[1736614600507,1.07592709,696.37,694.98,1.29001515]
[1736614601005,0.28720776,696.36,694.98,1.29001515]
[1736614601407,0.28720776,696.36,694.94,0.28779462]
[1736614609515,0.28720776,696.36,694.96,1.29001515]
[1736614610214,0.28720776,696.36,694.94,0.28779462]
[1736614648244,0.26409656,696.35,694.94,0.28779462]
[1736614648543,0.28721601,696.34,694.94,0.28779462]
[1736614649137,1.07618161,696.32,694.94,0.28779462]
[1736614650044,1.36339762,696.34,694.94,0.28779462]
[1736614650643,0.28721601,696.34,694.94,0.28779462]
[1736614654242,0.26410064,696.33,694.94,0.28779462]
[1736614654444,0.28722426,696.32,694.94,0.28779462]
[1736614679168,0.28722426,696.32,694.98,1.28393966]
[1736614680165,0.28722426,696.32,694.95,1.28393966]
[1736614680368,0.28722426,696.32,694.96,0.28778634]
[1736614691573,1.07618161,696.3,694.96,0.28778634]
[1736614692374,1.07618161,696.29,694.96,0.28778634]
[1736614693368,1.07618161,696.3,694.96,0.28778634]
[1736614694175,0.28722426,696.32,694.96,0.28778634]
[1736614696279,0.28722426,696.32,694.98,1.28393966]
[1736614697072,1.36340587,696.32,695.0,1.28393966]
[1736614697880,1.07618161,696.31,695.0,1.28393966]
[1736614700180,1.36340587,696.32,695.01,1.28393966]
[1736614701179,1.07618161,696.31,695.02,1.28393966]
[1736614701377,0.28723251,696.3,695.02,1.28393966]
[1736614701777,0.28723251,696.3,694.96,0.28778634]
[1736614706685,0.2641136,696.29,694.96,0.28778634]
[1736614707087,0.28724076,696.28,694.96,0.28778634]
[1736614707286,1.07618161,696.14,694.96,0.28778634]
[1736614708583,1.07618161,696.09,694.96,0.28778634]
[1736614709686,0.28732329,696.08,694.96,0.28778634]
[1736614709884,0.28732329,696.08,694.73,1.28393966]
[1736614711080,0.28732329,696.08,694.52,3.19475496]
[1736614711286,0.28732329,696.08,694.53,0.28796452]
[1736614715488,0.28732329,696.08,694.6,1.28393966]
[1736614716088,0.28732329,696.08,694.58,1.28393966]
[1736614716489,0.26418077,696.07,694.58,1.28393966]
[1736614716689,0.28733155,696.06,694.58,1.28393966]
[1736614716988,0.28733155,696.06,694.62,1.28393966]
[1736614717798,0.28733155,696.06,694.61,1.28393966]
[1736614718795,0.28733155,696.06,694.63,1.28393966]
[1736614719491,0.28733155,696.06,694.58,3.19475496]
[1736614720696,0.28733155,696.06,694.56,3.19475496]
[1736614723699,0.28733155,696.06,694.53,0.28796452]
[1736614734804,0.28733155,696.06,694.53,1.57190418]
[1736614736106,0.28733155,696.06,694.55,1.28393966]
[1736614737108,0.28733155,696.06,694.57,1.28393966]
[1736614738008,0.28733155,696.06,694.59,1.28393966]
[1736614738410,0.28733155,696.06,694.6,0.2879355]
[1736614739115,0.28733155,696.06,694.69,1.28393966]
[1736614740011,0.28733155,696.06,694.66,1.28393966]
[1736614741015,0.28733155,696.06,694.63,3.19475496]
[1736614741016,0.28733155,696.06,694.7,1.28393966]
[1736614742019,1.07618161,696.05,694.73,1.28393966]
[1736614742214,0.2873398,696.04,694.73,1.28393966]
[1736614742818,0.2873398,696.04,694.67,3.19475496]
[1736614742819,0.2873398,696.04,694.68,1.28393966]
[1736614743610,0.2873398,696.04,694.69,1.28393966]
[1736614743818,0.2873398,696.04,694.69,2.47044264]
[1736614744118,0.2873398,696.04,694.69,4.47869462]
[1736614744718,1.36352141,696.04,694.7,1.28393966]
[1736614745218,1.36352141,696.04,694.7,4.32905967]
[1736614745517,1.36352141,696.04,694.71,3.19475496]